[Event "448. Wednesday (05.08.2020)"]
[Site "Official B"]
[Date "2020.08.05"]
[Round "8"]
[White "Sedarpl"]
[Black "Smart-arse"]
[Result "1/2-1/2"]
[WhiteElo "2214"]
[BlackElo "1886"]
[PlyCount "72"]
[EventDate "2020.08.05"]
[EventType "swiss (blitz)"]
[TimeControl "300"]

1. e4 {[%emt 0:00:03]} e5 {[%emt 0:00:03]} 2. d4 {[%emt 0:00:03]} exd4 {[%emt 0:00:02]} 3. c3 {[%emt 0:00:02]} dxc3 {[%emt 0:00:01]} 4. Bc4 {[%emt 0:00:02]} cxb2 {[%emt 0:00:33]} 5. Bxb2 {[%emt 0:00:02]} d5 {[%emt 0:00:01]} 6. exd5 {[%emt 0:00:04]} Nf6 {[%emt 0:00:05]} 7. Ne2 {[%emt 0:00:11]} Bd6 {[%emt 0:00:12]} 8. Nd2 {[%emt 0:00:09]} O-O {[%emt 0:00:03]} 9. O-O {[%emt 0:00:04]} Nbd7 {[%emt 0:00:28]} 10. Qc2 {[%emt 0:00:17]} Nb6 {[%emt 0:00:04]} 11. Nc3 {[%emt 0:00:15]} Nxc4 {[%emt 0:00:08]} 12. Nxc4 {[%emt 0:00:01]} a6 {[%emt 0:00:05]} 13. Nxd6 {[%emt 0:00:04]} Qxd6 {[%emt 0:00:01]} 14. Ne4 {[%emt 0:00:01]} Nxe4 {[%emt 0:00:03]} 15. Qxe4 {[%emt 0:00:00]} Qg6 {[%emt 0:00:33]} 16. Qxg6 {[%emt 0:00:06]} hxg6 {[%emt 0:00:01]} 17. Rfc1 {[%emt 0:00:03]} Rd8 {[%emt 0:00:03]} 18. Rxc7 {[%emt 0:00:06]} Rxd5 {[%emt 0:00:01]} 19. Re7 {[%emt 0:00:02]} Be6 {[%emt 0:00:08]} 20. Rxb7 {[%emt 0:00:04]} Rc8 {[%emt 0:00:02]} 21. a4 {[%emt 0:00:17]} a5 {[%emt 0:00:03]} 22. h3 {[%emt 0:00:08]} Rc2 {[%emt 0:00:04]} 23. Rf1 {[%emt 0:00:07]} g5 {[%emt 0:00:17]} 24. Rb8+ {[%emt 0:00:04]} Kh7 {[%emt 0:00:02]} 25. Kh2 {[%emt 0:00:02]} Rf5 {[%emt 0:00:02]} 26. Bd4 {[%emt 0:00:04]} Rc4 {[%emt 0:00:04]} 27. Be3 {[%emt 0:00:01]} Rxa4 {[%emt 0:00:02]} 28. Rc1 {[%emt 0:00:02]} Ra2 {[%emt 0:00:03]} 29. Rc7 {[%emt 0:00:04]} a4 {[%emt 0:00:03]} 30. Ra8 {[%emt 0:00:04]} Bb3 {[%emt 0:00:11]} 31. Ra6 {[%emt 0:00:04]} Re2 {[%emt 0:00:08]} 32. Rca7 {[%emt 0:00:05]} Rc2 {[%emt 0:00:05]} 33. Kg1 {[%emt 0:00:09]} Rd5 {[%emt 0:00:02]} 34. Kh2 {[%emt 0:00:03]} Rf5 {[%emt 0:00:01]} 35. Kg1 {[%emt 0:00:01]} Rd5 {[%emt 0:00:01]} 36. Kh2 {[%emt 0:00:04]} Rf5 {[%emt 0:00:06] (Lag: Av=1.26s, max=2.9s)} 1/2-1/2

[Event "448. Wednesday (05.08.2020)"]
[Site "Official B"]
[Date "2020.08.05"]
[Round "9"]
[White "Károly Lajosné"]
[Black "Königsinder"]
[Result "1-0"]
[WhiteElo "1932"]
[BlackElo "1694"]
[PlyCount "125"]
[EventDate "2020.08.05"]
[EventType "swiss (blitz)"]
[BlackTeam "SF Barsinghausen"]
[TimeControl "300"]

{- Serreck, Uwe (1889)} 1. d4 {[%emt 0:01:37]} g6 {[%emt 0:00:03]} 2. Nf3 {[%emt 0:00:02]} Bg7 {[%emt 0:00:01]} 3. Bf4 {[%emt 0:00:04]} d6 {[%emt 0:00:01]} 4. e3 {[%emt 0:00:01]} Nf6 {[%emt 0:00:02]} 5. h3 {[%emt 0:00:01]} O-O {[%emt 0:00:02]} 6. Bh2 {[%emt 0:00:01]} Nbd7 {[%emt 0:00:02]} 7. Be2 {[%emt 0:00:01]} b6 {[%emt 0:00:05]} 8. O-O {[%emt 0:00:01]} Ne4 {[%emt 0:00:04]} 9. Nbd2 {[%emt 0:00:02]} Bb7 {[%emt 0:00:02]} 10. c3 {[%emt 0:00:01]} e5 {[%emt 0:00:04]} 11. Qb1 {[%emt 0:00:03]} f5 {[%emt 0:00:14]} 12. Rd1 {[%emt 0:00:02]} Nxd2 {[%emt 0:00:13]} 13. Nxd2 {[%emt 0:00:06]} Qg5 {[%emt 0:00:35]} 14. Bf3 {[%emt 0:00:04]} e4 {[%emt 0:00:03]} 15. Be2 {[%emt 0:00:01]} h5 {[%emt 0:00:07]} 16. a4 {[%emt 0:00:02]} h4 {[%emt 0:00:04]} 17. a5 {[%emt 0:00:02]} Nf6 {[%emt 0:00:11]} 18. Bf4 {[%emt 0:00:02]} Qxf4 {[%emt 0:00:21]} 19. exf4 {[%emt 0:00:02]} Nd5 {[%emt 0:00:03]} 20. Bc4 {[%emt 0:00:02]} Kh7 {[%emt 0:00:03]} 21. Bxd5 {[%emt 0:00:02]} Bxd5 {[%emt 0:00:02]} 22. Re1 {[%emt 0:00:01]} b5 {[%emt 0:00:03]} 23. Nf1 {[%emt 0:00:02]} a6 {[%emt 0:00:08]} 24. Ne3 {[%emt 0:00:03]} Bf7 {[%emt 0:00:05]} 25. Qc2 {[%emt 0:00:03]} Rfc8 {[%emt 0:00:04]} 26. c4 {[%emt 0:00:03]} b4 {[%emt 0:00:05]} 27. d5 {[%emt 0:00:07]} Rab8 {[%emt 0:00:10]} 28. Qb3 {[%emt 0:00:02]} c5 {[%emt 0:00:07]} 29. dxc6 {[%emt 0:00:05]} Rxc6 {[%emt 0:00:01]} 30. Red1 {[%emt 0:00:02]} Rb5 {[%emt 0:00:09]} 31. Ra4 {[%emt 0:00:05]} Rbc5 {[%emt 0:00:06]} 32. Qxb4 {[%emt 0:00:11]} Bxc4 {[%emt 0:00:07]} 33. Qb8 {[%emt 0:00:18]} Bb5 {[%emt 0:00:10]} 34. Ra2 {[%emt 0:00:07]} Rc1 {[%emt 0:00:06]} 35. Qd8 {[%emt 0:00:14]} Rxd1+ {[%emt 0:00:03]} 36. Nxd1 {[%emt 0:00:03]} Rc1 {[%emt 0:00:07]} 37. Qxh4+ {[%emt 0:00:10]} Bh6 {[%emt 0:00:04]} 38. Qe7+ {[%emt 0:00:02]} Bg7 {[%emt 0:00:01]} 39. Qxd6 {[%emt 0:00:01]} Be2 {[%emt 0:00:02]} 40. Kh2 {[%emt 0:00:09]} Rxd1 {[%emt 0:00:02]} 41. Qb6 {[%emt 0:00:03]} Bh6 {[%emt 0:00:09]} 42. g3 {[%emt 0:00:02]} Bf3 {[%emt 0:00:02]} 43. Qc7+ {[%emt 0:00:10]} Bg7 {[%emt 0:00:02]} 44. g4 {[%emt 0:00:01]} Rh1+ {[%emt 0:00:12]} 45. Kg3 {[%emt 0:00:01]} fxg4 {[%emt 0:00:01]} 46. hxg4 {[%emt 0:00:01]} Rg1+ {[%emt 0:00:01]} 47. Kh4 {[%emt 0:00:01]} Kh6 {[%emt 0:00:07]} 48. g5+ {[%emt 0:00:06]} Kh7 {[%emt 0:00:03]} 49. f5 {[%emt 0:00:01]} Rh1+ {[%emt 0:00:02]} 50. Kg3 {[%emt 0:00:01]} Rg1+ {[%emt 0:00:03]} 51. Kf4 {[%emt 0:00:01]} Rg4+ {[%emt 0:00:01]} 52. Ke3 {[%emt 0:00:01]} gxf5 {[%emt 0:00:02]} 53. g6+ {[%emt 0:00:02]} Rxg6 {[%emt 0:00:01]} 54. Qh2+ {[%emt 0:00:02]} Bh6+ {[%emt 0:00:01]} 55. Kd4 {[%emt 0:00:02]} Rd6+ {[%emt 0:00:01]} 56. Ke5 {[%emt 0:00:01]} Rc6 {[%emt 0:00:02]} 57. Kxf5 {[%emt 0:00:01]} Rc5+ {[%emt 0:00:01]} 58. Ke6 {[%emt 0:00:01]} Rc6+ {[%emt 0:00:01]} 59. Kd7 {[%emt 0:00:01]} Rc2 {[%emt 0:00:02]} 60. Ra3 {[%emt 0:00:01]} Rd2+ {[%emt 0:00:01]} 61. Kc7 {[%emt 0:00:03]} Rc2+ {[%emt 0:00:01]} 62. Kb6 {[%emt 0:00:01]} Rc4 {[%emt 0:00:02]} 63. Qc7+ {[%emt 0:00:01] Zeit (Lag: Av=0.54s, max=0.8s)} 1-0